Cogmind - Beta 17.1 @@@ ROGUE MODE // 2026.09.19 @ 15:32:45 Player: HeartGrenade Result: Destroyed by 61-6LQ(R) with Subdweller Machine Gun Performance ------------- Evolutions (0) 0 Regions Visited (2) 400 Robots Destroyed (31) 155 Value Destroyed (668) 668 Prototype IDs (6) 120 Alien Tech Used (0) 0 Bonus (6494) 6494 TOTAL SCORE: 7837 Bonus ------- Follower Combat Kills 14 Prayed to X0-1V1 5000 Major X0-1V1 Interference 1700 Friendly Fire -220 Cogmind --------- Core Integrity 0/175 Matter 288/300 Energy 843/900 System Corruption 0% Temperature Cool (0) Movement Core (750) Ox14 Location -10/Subcaves Parts ------- > --- POWER (1) -------- (None) > --- PROPULSION (2) --- Subdweller Monowheel > --- UTILITY (2) ------ High-capacity Storage Unit > --- WEAPON (2) ------- Subdweller Laser > --- INVENTORY (20) --- Ion Engine Improved Ion Engine Wheel Disposable Heat Sink High-capacity Storage Unit Light Armor Plating Makeshift Light Armor Plating Heavy EM Pulse Gun Heavy EM Pulse Gun Heavy EM Pulse Gun Heavy EM Pulse Gun Subdweller Beam Cannon Grenade Launcher Rocket Launcher Rocket Launcher Mining Laser Explosive Trap Peak State ------------ > --- POWER ------------ Subdweller Power Source > --- PROPULSION ------- Light Treads Subdweller Monowheel > --- UTILITY ---------- High-capacity Storage Unit X0-1V1's Piety Tracker > --- WEAPON ----------- Subdweller Laser Assault Rifle > --- INVENTORY -------- Ion Engine Improved Ion Engine Disposable Heat Sink High-capacity Storage Unit Light Armor Plating Makeshift Light Armor Plating Heavy EM Pulse Gun Heavy EM Pulse Gun Heavy EM Pulse Gun Heavy EM Pulse Gun Subdweller Beam Cannon Battle Rifle Grenade Launcher Rocket Launcher Rocket Launcher Mining Laser Explosive Trap [Rating: 25] Favorites ----------- Power Improved Ion Engine Engine Improved Ion Engine Propulsion Light Treads Treads Light Treads Leg Aluminum Leg Wheel Wheel Utility High-capacity Storage Unit Device X0-1V1's Piety Tracker Storage High-capacity Storage Unit Processor Targeting Computer Protection Weapon Shielding Weapon Assault Rifle Energy Gun Subdweller Laser Ballistic Gun Assault Rifle Launcher Grenade Launcher Build | -11 -10 -10 ------- Run | Yrd Mat Sub Slots Evolved . | . . . Power . | . . . Propulsion . | . . . Utility . | . . . Weapon . | . . . Parts Attached 30 | 6 11 13 Power 6 | 1 2 3 Engine 6 | 1 2 3 Core . | . . . Reactor . | . . . Propulsion 6 | 3 . 3 Treads 2 | 2 . . Leg 2 | 1 . 1 Wheel 2 | . . 2 Hover . | . . . Flight . | . . . Utility 7 | . 5 2 Device 3 | . 1 2 Storage 1 | . 1 . Processor 1 | . 1 . Hackware . | . . . Protection 2 | . 2 . Artifact . | . . . Weapon 11 | 2 4 5 Energy Gun 1 | . . 1 Energy Cannon . | . . . Ballistic Gun 8 | 2 2 4 Ballistic Cannon . | . . . Launcher 2 | . 2 . Special Weapon . | . . . Impact Weapon . | . . . Slashing Weapon . | . . . Piercing Weapon . | . . . Special Melee Weapon . | . . . Unidentified Prototypes 1 | . . 1 Parts Lost 15 | . . 15 Power 2 | . . 2 Propulsion 5 | . . 5 Utility 2 | . . 2 Weapon 6 | . . 6 Highest Loss Streak 5 | . . 5 To Critical Strikes . | . . . Average Backups 14 | 2 6 16 Power 1 | . 1 2 Propulsion 1 | 1 2 1 Utility 2 | . . 2 Weapon 8 | . 2 10 Tool/Special . | . . . Unused Backups 16 | . 2 14 Power 1 | . . 1 Propulsion 1 | . . 1 Utility 4 | . . 4 Weapon 10 | . 2 8 Tool/Special . | . . . Average Slot Usage (%) 90 | . 88 90 Engine 10 | . 8 10 Treads 12 | . 28 7 Leg 7 | . . 9 Wheel 4 | . . 5 Device 11 | . 5 12 Storage 11 | . 3 14 Processor 2 | . 7 . Protection 1 | . 5 . Energy Gun 2 | . . 2 Ballistic Gun 25 | . 27 24 Peak Build Rating 25 | 4 10 25 Average Rating 17 | 2 7 21 On Entrance 4 | . 4 10 Avg Prop Armor Cover (%) 20 | 26 23 12 Naked Turns . | . . . Heaviest Build 55 | 3 51 55 Greatest Support 46 | 20 46 40 Greatest Overweight (x) 5 | . 1 5 Average Overweight (x) 2 | . . 2 Largest Inventory Capacity 20 | 5 20 20 Average Capacity 17 | 5 9 20 Most Carried 20 | 4 14 20 Average Carried 14 | 2 6 17 Final Capacity 20 | 5 20 20 Final Carried 17 | 4 14 17 Class Distribution -------------------- 100% | Mutant Dominant Class ---------------- Mutant | -10/Materials Mutant | -10/Subcaves Resources | -11 -10 -10 ----------- Run | Yrd Mat Sub Matter Collected 1004 | 236 157 611 Remotely . | . . . Salvage Created 843 | . 283 560 Parts 50 | . 27 23 Haulers Intercepted 2 | . 2 . Recyclers Shooed . | . . . Parts Field Recycled . | . . . Retrieved Matter . | . . . Parts Self-Destructed 11 | . . 11 Prevented . | . . . Parts Restored . | . . . Kills | -11 -10 -10 ------- Run | Yrd Mat Sub Combat Hostiles Destroyed 27 | . 12 15 Guns 17 | . 6 11 AOE 9 | . 6 3 Classes Destroyed 7 | . 3 4 Hauler 2 | . 2 . Turret 1 | . . 1 Swarmer 14 | . 9 5 Grunt 6 | . 3 3 Heavy 1 | . . 1 Artisan 1 | . . 1 Subdweller 7 | . . 7 Best Kill Streak 4 | . 4 3 Combat Bots Only 4 | . 4 3 Max Kills in Single Turn 3 | . 3 2 Gunslinging . | . . . Exploded 3 | . 3 2 Melee . | . . . Uniques/NPCs Destroyed . | . . . Combat | -11 -10 -10 -------- Run | Yrd Mat Sub Hostile Shots Fired 199 | . 34 165 Missed 58 | . 11 47 Hits 141 | . 23 118 Projectile 141 | . 23 118 Critical Strikes 4 | . . 4 Damage Taken 1836 | . 219 1617 Core 328 | . 16 312 Absorbed by Shields . | . . . Redirected to Shielding 20 | . 20 . Core Remaining (%) 100 | 100 . . Volleys Fired 106 | . 25 81 Largest 2 | . 2 2 Hottest 85 | . 40 85 Shots Fired 183 | . 47 136 Gun 175 | . 44 131 Cannon . | . . . Launcher 8 | . 3 5 Special . | . . . Kinetic 144 | . 44 100 Thermal 31 | . . 31 Explosive 8 | . 3 5 Electromagnetic . | . . . Robot Hit Streak 21 | . 11 21 Robot Miss Streak 5 | . 3 5 Penetration Max . | . . . Secondary Targets 2 | . . 2 Max Gunslinging Chain 1 | . . 1 Shots Hit Robots 120 | . 31 89 Core Hits 50 | . 19 31 Critical Kills . | . . . Critical Parts Destroyed 1 | . 1 . Critical Strikes 2 | . 1 1 Destroy 2 | . 1 1 Melee Attacks . | . . . Impact . | . . . Slashing . | . . . Piercing . | . . . Sneak Attacks . | . . . Combat Hostiles . | . . . Follow-up Attacks . | . . . Damage Inflicted 2084 | . 616 1468 Guns 1675 | . 355 1320 Cannons . | . . . Explosions 409 | . 261 148 Melee . | . . . Ramming . | . . . Kinetic 1351 | . 355 996 Thermal 324 | . . 324 Explosive 409 | . 261 148 Electromagnetic . | . . . Impact . | . . . Slashing . | . . . Piercing . | . . . Highest Corruption 6 | . . 6 Average Corruption 3 | . . 3 Corruption Purged . | . . . Corruption Blocked . | . . . Effects 14 | . . 14 Message Errors 3 | . . 3 Matter Fused 4 | . . 4 Heat Flow Errors 2 | . . 2 Energy Discharges 2 | . . 2 Parts Fused 1 | . . 1 Data Loss (minor) 1 | . . 1 Misfires 1 | . . 1 Overload Shots . | . . . Overflow Damage . | . . . Projectiles . | . . . Explosions . | . . . Melee . | . . . Knockbacks . | . . . Impact . | . . . Kinetic . | . . . Secondary . | . . . Self-Inflicted Damage 21 | . . 21 Shots 2 | . . 2 Rammed . | . . . Targets Rammed . | . . . Kicked . | . . . Crushed . | . . . Highest Temperature 261 | . 6 261 Average Temperature 106 | . 1 126 Received Heat Transfer 898 | . 78 820 Siege Activations . | . . . Martial Activations . | . . . Shielding Activations . | . . . Robots Disrupted . | . . . Combat Hostiles . | . . . Robots Corrupted . | . . . Combat Hostiles . | . . . Parts Fried . | . . . Impact Corruptions . | . . . Robots Melted . | . . . Combat Hostiles . | . . . Parts Melted . | . . . Heat Transferred 400 | . . 400 Parts Sabotaged . | . . . Parts Stolen . | . . . Parts Stripped . | . . . Power Chain Reactions . | . . . Alert | -11 -10 -10 ------- Run | Yrd Mat Sub Maximum Alert Level . | . . . Low Security (%) 100 | 100 100 . Level 1 . | . . . Level 2 . | . . . Level 3 . | . . . Level 4 . | . . . Level 5 . | . . . High Security . | . . . Max Security . | . . . Peak Influence 153 | . 153 . Initial . | . . . Average 80 | . 84 . Influence Increases 604 | . 349 255 Destroy 0b10 Robot/C 480 | . 240 240 Destroy 0b10 Robot/NC 10 | . 10 . Destroy Leader 54 | . 44 10 Allied During Kill 5 | . . 5 Successful Hack 23 | . 23 . Disable Machine 15 | . 15 . Destroy Structure 17 | . 17 . Influence Decreases 604 | . 236 368 Entered New Map 55 | . . 55 Time Decay 459 | . 236 223 Lost Part 90 | . . 90 Squads Dispatched 1 | . 1 . Investigation . | . . . Extermination . | . . . Reinforcement 1 | . 1 . Assault . | . . . Garrison . | . . . Intercept . | . . . Searches Triggered . | . . . Construction Impeded . | . . . Haulers Reinforced . | . . . Active Scanning Responses . | . . . Cargo Convoy Interrupts . | . . . Stealth | -11 -10 -10 --------- Run | Yrd Mat Sub Distress Signals 1 | . 1 . Communications Jammed . | . . . Distress Signals . | . . . Times Spotted 45 | . 21 24 Peak Tracking Total 6 | . 5 6 Tactical Retreats . | . . . Traps | -11 -10 -10 ------- Run | Yrd Mat Sub Traps Triggered . | . . . Indirectly . | . . . Trap Hack Attempts . | . . . Triggered . | . . . Disarmed . | . . . Reprogrammed . | . . . Reused . | . . . Traps Extracted . | . . . Installed . | . . . Triggered . | . . . Most Traps Carried 1 | . . 1 Machines | -11 -10 -10 ---------- Run | Yrd Mat Sub Machines Disabled 2 | . 1 1 Max in Single Turn 1 | . 1 1 Machines Repaired . | . . . Machines Dismantled . | . . . Machines Sabotaged . | . . . Overloaded Fab Kills . | . . . Hacking | -11 -10 -10 --------- Run | Yrd Mat Sub Machines Accessed 7 | . 7 . Terminals 7 | . 7 . Fabricators . | . . . Repair Stations . | . . . Recycling Units . | . . . Scanalyzers . | . . . Garrison Access . | . . . Total Hacks 26 | . 26 . Successful 12 | . 12 . Failed 14 | . 14 . Catastrophic 2 | . 2 . Database Lockouts . | . . . Manual 13 | . 13 . Terminals 26 | . 26 . Fabricators . | . . . Repair Stations . | . . . Recycling Units . | . . . Scanalyzers . | . . . Garrison Access . | . . . Terminal Hacks 9 | . 9 . Part Schematic 1 | . 1 . Robot Analysis 1 | . 1 . Prototype ID Bank 3 | . 3 . Locate Traps 2 | . 2 . Maintenance Status 1 | . 1 . Registered Prototypes 1 | . 1 . Fabricator Hacks . | . . . Repair Station Hacks . | . . . Recycling Unit Hacks . | . . . Scanalyzer . | . . . Garrison Access Hacks . | . . . Unauthorized Hacks 3 | . 3 . Terminals 3 | . 3 . Assimilate 1 | . 1 . Botnet 1 | . 1 . Skim 1 | . 1 . Fabricators . | . . . Repair Stations . | . . . Recycling Units . | . . . Scanalyzers . | . . . Garrison Access . | . . . Data Cores Recovered . | . . . Used . | . . . Hacking Detections 6 | . 6 . Full Trace Events . | . . . Feedback Events . | . . . Feedback Blocked . | . . . Robot Schematics Acquired . | . . . Robots Built . | . . . Authchips . | . . . Time . | . . . Total Robot Build Rating . | . . . Part Schematics Acquired 1 | . 1 . Parts Built . | . . . Authchips . | . . . Time . | . . . Total Part Build Rating . | . . . Part Studies Acquired . | . . . Parts Repaired . | . . . Time . | . . . Parts Recycled . | . . . Recycled Matter . | . . . Retrieved Matter . | . . . Retrieved Components . | . . . Parts Scanalyzed . | . . . Part Schematics Acquired . | . . . Parts Damaged . | . . . Bothacking | -11 -10 -10 ------------ Run | Yrd Mat Sub Used RIF Installer . | . . . Robots Hacked . | . . . Non-combat . | . . . Combat . | . . . Robot Hacks Applied . | . . . Relay Couplers Released . | . . . Fabnet Peak Effective % . | . . . Robots Rewired . | . . . Allies Hacked . | . . . Hacks Repelled . | . . . Allies | -11 -10 -10 -------- Run | Yrd Mat Sub Total Allies 2 | . 1 1 Largest Group 1 | . 1 1 Highest-Rated Group 90 | . 10 90 Highest-Rated Ally 90 | . 10 90 Total Orders . | . . . Ally Attacks 4 | . . 4 Total Damage 221 | . . 221 Kills 3 | . . 3 Allies Corrupted . | . . . Allies Melted . | . . . X0-1V1 Amusement Gains 71 | . 11 60 Average Entertainment 13 | . 11 13 Good Acts 19 | . . 19 Bad Acts 20 | . . 20 Intel | -11 -10 -10 ------- Run | Yrd Mat Sub Active Infowar (turns) . | . . . Robot Analysis Total 1 | . 1 . Derelict Logs Recovered 3 | . . 3 Drone Launches . | . . . Drone Recoveries . | . . . Exploration | -11 -10 -10 ------------- Run | Yrd Mat Sub Turns Passed 2613 | 33 593 1987 Spaces Moved 1349 | 37 422 890 Core 294 | 35 259 . Treads 334 | 2 163 169 Legs 238 | . . 238 Wheels 483 | . . 483 Hover . | . . . Flight . | . . . Fastest Speed 50 | 50 50 130 Average Speed 164 | 55 113 193 Slowest Speed 320 | 160 240 320 Overloaded Moves . | . . . Propulsion Burnouts . | . . . Robots Hopped . | . . . Potential Cave-ins . | . . . Cave-ins Triggered . | . . . Exploration Rate (%) 47 | 2 77 63 Regions Visited 2 Branch Regions 1 Pre-discovered Areas 1 | . . 1 Known Exits Taken . | . . . Unknown Exits Taken 2 | 1 1 . Scrap Searched 5 | . . 5 Spaces Dug . | . . . Terrain Destroyed 34 | . 17 17 Melee . | . . . Projectile . | . . . AOE 34 | . 17 17 Terrain Rammed . | . . . Walls Destroyed . | . . . Machines Disabled . | . . . Actions | -11 -10 -10 --------- Run | Yrd Mat Sub Total 1560 | 46 497 1017 Wait 27 | . 13 14 Move 1347 | 36 421 890 Hop . | . . . Pick Up 26 | 2 14 10 Fast Attach 17 | 6 7 4 Attach 8 | . . 8 Detach 4 | 2 1 1 Swap 15 | . 6 9 Drop 10 | . 10 . Fire 106 | . 25 81 Melee . | . . . Ram . | . . . Kick . | . . . Crush . | . . . Escape Stasis . | . . . Rewire . | . . . Trap . | . . . Miscellaneous . | . . . Route ------- -11/Scrapyard -10/Materials (discovered 3 exits: [*Mat] / [*Min] / [*Sub]) -10/Subcaves (discovered 3 exits: *Mat x2 / [*Rec]) History --------- Turn | Location | Event 11 | -11/Scrapyard | Discovered new exit (range 15) 34 | -11/Scrapyard | Entered Materials 315 | -10/Materials | Build established: Mutant 366 | -10/Materials | Discovered new exit (range 16) 440 | -10/Materials | Discovered new exit (range 14) 443 | -10/Materials | Discovered new exit (range 16) 625 | -10/Materials | Prayed at D.C.S.S. Altar Unit 627 | -10/Materials | Entered Subcaves 627 | -10/Subcaves | Accompanied by 1 ally 661 | -10/Subcaves | Learned Materials emergency access door positions 1235 | -10/Subcaves | X0-1V1 caused items to flee you 1391 | -10/Subcaves | A swath of the cavern ceiling suddenly collapsed 1537 | -10/Subcaves | Items stopped fleeing you 1584 | -10/Subcaves | Heat dissipation permanently improved by X0-1V1 (+15; -75 max core) 1602 | -10/Subcaves | X0-1V1 activates XOMVISION 1610 | -10/Subcaves | X0-1V1 sent you into danger 1625 | -10/Subcaves | Identified exit to Materials 1625 | -10/Subcaves | X0-1V1 revealed exit location to -8/Materials 1670 | -10/Subcaves | X0-1V1 sent hostile G-34 Mercenary (x3) 1711 | -10/Subcaves | A swath of the cavern ceiling suddenly collapsed 1752 | -10/Subcaves | Discovered new exit (range 4) 1752 | -10/Subcaves | X0-1V1 sent you into danger 1767 | -10/Subcaves | X0-1V1 sent allied H-61 Shepherd (x1) 1776 | -10/Subcaves | X0-1V1 revealed exit location to -8/Materials 1807 | -10/Subcaves | X0-1V1 rewrote H-61 Shepherd IFF filter 1848 | -10/Subcaves | Lost 4 parts (1p1n1u1w) 1968 | -10/Subcaves | Core integrity restored by X0-1V1 (+40) 1996 | -10/Subcaves | Learned location of Storage (-9) 2204 | -10/Subcaves | Core integrity restored by X0-1V1 (+40) 2221 | -10/Subcaves | Disturbed a concealed Subdweller 2400 | -10/Subcaves | Learned 2 Materials zone layouts 2447 | -10/Subcaves | X0-1V1 sent you into danger 2459 | -10/Subcaves | Core integrity fell below 50% 2496 | -10/Subcaves | Lost 3 parts (1n2w) 2578 | -10/Subcaves | Visited 4L-MR0's lab 2609 | -10/Subcaves | Core integrity fell below 20% 2614 | -10/Subcaves | Destroyed by 61-6LQ(R) with Subdweller Machine Gun Last Messages --------------- 02486_ Acquired 56 matter. 02492_ Acquired Sub. Monowheel. 02516_ Acquired 6 matter. 02520_ Acquired 4 matter. 02529_ Acquired Wheel. 02591_ R3-8LI(R) destroyed. 02597_ Lgt. Treads destroyed. 02597_ Assault Rifle destroyed. 02599_ Sub. Power Source destroyed. 02603_ X0-1V1's Piety Tracker destroyed. 02603_ X0-1V1 is mildly amused. 02603_ Critical hit (Meltdown: +270). 02603_ SV-ACX(R) destroyed. 02604_ X0-1V1 is amused. 02606_ 61-6LQ(R) suffers critical hit (Destroy). 02610_ Battle Rifle destroyed. 02614_ X0-1V1: "There's a penalty for shooting from the hip 'round these parts." (-9% ranged accuracy) 02614_ X0-1V1 giggles madly! Map ----- +----------------------------------------------------+ | | | | | | | | | | | | | | | | | | | | | | | | | | | ?????????????????????????????????????????????????? | | ?????????????????????????????????????????????????? | | ?????????????????????????????????????????????????? | | ????????????????????????????###??????????????????? | | ???????????????????????????? "##????????????????? | | ??????????????????????? ""?#"" "#????????????????? | | ???????????????????????? #" ""#????????????????? | | ????????????????????????? / "" "#????????????????? | | ??????????????????????????# "" #????????????????? | | ???????????????????????????#"" "#????????????????? | | ??????????????????????????##"" "#????????????????? | | ?????????????????????######""" #????????????????? | | ?????????????????????# @# " ##????????????????? | | ?????????????????????## !|R] #?????????????????? | | ???##???######???????#< ##! ##?????????????????? | | #?## ##?# #?????###< "#####??????????????????? | | ## #?# #??#### < ##???????????????????? | | #### #### #???????????????? | | ## ## ## ### #???????????????? | | ## #?# ##???????????????? | | "" ##????????????????? | | ## "" ## ##?????????????????? | | #### ## "" ##### ##??????????????????? | | " """##???# ## ##???????????????????? | | "##???? ##? #????????????????????? | | "##??? #?? #????????????????????? | | & &#??? #??# #????????????????????? | | % %#??## ##???# #????????????????????? | | #??? ##?????##????????????????????? | | #??? ###????????????????????????????? | | " #??# ???????????????????????????????? | | " #??## ???????????????????????????????? | | ## #???# ???????????????????????????????? | | ### ##???# ???????????????????????????????? | | #?## #????? ???????????????????????????????? | | ??## #?????????????????????????????????????? | | ##???# ????????????????????????????????????? | +----------------------------------------------------+ Best States ------------- Heat Dissipation 40 Energy Generation 12 Energy Capacity 1065 Matter Stores 300 Matter Capacity 300 Sight Range 16 Terrain Scan Density 10 Additional Mass Support 6 Armor Coverage 150 Weapon Shielding 33 Evasion (%) 50 Targeting Accuracy 5 Recoil Reduction 2 Item Schematics ----------------- Hcp. Storage Unit | -10/Materials | Hacked Robot Schematics ------------------ None Fabricated ------------ Nothing Repaired ---------- Nothing Studied --------- None Alien Tech Used ----------------- None Achievements -------------- None Challenges ------------ None Game ------ Seed ChargeHybridMaxwheels Manual? 0 Play Time 00:18:36 Cumulative 420.2 hours Start 2026.09.19 @ 15:14:16 End 2026.09.19 @ 15:32:45 Sessions 1 Manual Loads 0 Difficulty Rogue Special Mode None Game No. 184 Rogue 184 Adventurer 0 Explorer 0 Win Type - Total 22 Types 9/2/6/1/2/0/1/1/0/0 Lore% 75 Gallery% 71 Achievement% 52 Wizard Run 0 Options --------- Layout 2 ASCII 0 Keyboard 1 Movement Numpad Keybinds 0 Fullscreen 2 Font 24/Proggy Map View 50x44 Zoom Use 0% Tactical HUD 1 Map Filters NONE Filters NONE Steam 1 RUN: 12ec788a-48c2-464c-b102-b921d64860a3